[Event "Fagernes Chess GM-Swiss 2024"]
[Site "Fagernes"]
[Date "2024.03.27"]
[Round "5.8"]
[White "Pranav Anand"]
[Black "Johansson, Linus"]
[Result "1/2-1/2"]
[ECO "B31"]
[WhiteElo "2519"]
[BlackElo "2427"]
[Annotator "TA"]
[PlyCount "170"]
[EventDate "2024.03.25"]
[EventType "swiss"]
[EventCountry "NOR"]
[SourceTitle "playchess.com"]
[Source "ChessBase"]
[SourceQuality "1"]
[TimeControl "40/6000+30:2400+30"]

{[%evp 78,170,119,111,140,165,164,164,171,171,171,45,29,8,8,8,8,8,8,8,8,8,8,8,8,8,8,8,8,8,29,29,29,8,8,8,8,8,8,8,8,8,8,8,8,8,8,0,0,0,8,0,8,8,8,8,8,8,8,8,8,8,8,8,8,8,8,8,8,8,8,8,8,8,8,8,8,8,8,8,8,8,8,8,8,8,8,0,0,0,0,0,0,0,0]} 1. e4 {[%emt 0:02:06]} c5 {[%emt 0:00:05]} 2. Nf3 {[%emt 0:00:07]} Nc6 {[%emt 0:00:03]} 3. Bb5 {[%emt 0:00:05]} g6 {[%emt 0:00:05]} 4. O-O {[%emt 0:00:09]} Bg7 {[%emt 0:00:04]} 5. Bxc6 {[%emt 0:00:05]} dxc6 {[%emt 0:00:07]} 6. d3 {[%emt 0:00:05]} Nf6 $1 {[%emt 0:01:35] 6...Nf6 ist besser als 6...e5.} 7. Re1 {[%emt 0:02:44]} Bg4 {[%emt 0:01:15] B31: Sizilianisch (Rossolimo-Variante).} 8. Nbd2 {[%emt 0:00:33]} e5 {[%emt 0:02:55]} 9. Nc4 {[%emt 0:04:42]} Bxf3 {[%emt 0:01:16]} 10. Qxf3 {[%emt 0:00:02]} Qe7 {[%emt 0:02:18]} 11. a4 {[%emt 0:03:01]} Nd7 {[%emt 0:02:31]} 12. a5 {[%emt 0:02:02]} Nf8 $146 {[%emt 0:01:44]} ({Predecessor:} 12... O-O 13. Qg3 Rfe8 14. Bd2 Rad8 15. Rab1 Kh8 16. b4 cxb4 17. Bxb4 c5 18. Bd2 Nb8 {½-½ Tatai,S (2385)-Machin,G Saint Vincent op 1998 (1)}) 13. Bd2 {[%emt 0:12:34]} Ne6 {[%emt 0:01:02]} 14. Rab1 {[%emt 0:00:32]} O-O {[%emt 0:05:36]} 15. b4 {[%emt 0:00:41]} cxb4 {[%emt 0:00:15]} 16. Bxb4 {[%emt 0:00:40]} c5 {[%emt 0:00:08]} 17. Bc3 {[%emt 0:00:35]} Nd4 {[%emt 0:03:59]} 18. Bxd4 {[%emt 0:09:23]} cxd4 {[%emt 0:00:08]} 19. Rb5 {[%emt 0:00:33]} Rac8 {[%emt 0:08:03]} 20. Reb1 {[%emt 0:01:45]} Rc7 {[%emt 0:01:00]} 21. Qg3 {[%emt 0:08:45]} Rd8 {[%emt 0:08:22]} 22. R1b2 {[%emt 0:03:07]} Rdd7 {[%emt 0:00:57]} 23. Nxe5 {[%emt 0:06:37]} Bxe5 {[%emt 0:00:26]} 24. Qxe5 {[%emt 0:00:04]} Qxe5 {[%emt 0:13:07]} 25. Rxe5 {[%emt 0:00:30]} Rc3 {[%emt 0:00:06]} 26. g4 {[%emt 0:10:01]} Rdc7 {[%emt 0:02:47]} 27. Rd5 {[%emt 0:01:01]} Rxc2 {[%emt 0:00:18]} 28. Rxc2 {[%emt 0:00:02]} Rxc2 {[%emt 0:00:09]} 29. Rxd4 {[%emt 0:00:03]} Rc5 {[%emt 0:00:21]} 30. Rd7 {[%emt 0:00:55]} Rxa5 {[%emt 0:00:09]} 31. Rxb7 {[%emt 0:00:04]} Ra1+ {[%emt 0:03:53]} 32. Kg2 {[%emt 0:00:21]} a5 {[%emt 0:00:08]} 33. Kf3 {[%emt 0:10:15]} g5 {[%emt 0:06:35]} 34. Ra7 {[%emt 0:06:06]} a4 {[%emt 0:06:53]} 35. e5 {[%emt 0:04:45]} a3 {[%emt 0:02:21]} 36. Ke4 {[%emt 0:03:43]} h6 {[%emt 0:00:36]} 37. Ra8+ {[%emt 0:06:07]} Kg7 {[%emt 0:01:36]} 38. Kf3 {[%emt 0:00:56]} a2 {[%emt 0:20:46]} 39. Ke2 {[%emt 0:00:47]} Rg1 {[%emt 0:00:06]} 40. Rxa2 {[%emt 0:00:04]} Rxg4 {[%emt 0:00:05] [#]} 41. Ke3 $1 {[%emt 0:49:07]} Rg2 {[%emt 0:53:27]} 42. d4 {[%emt 0:00:00]} Rxh2 {[%emt 0:00:00]} 43. d5 {[%emt 0:00:00]} Rh1 {[%emt 0:00:00] [#]} 44. Rd2 {[%emt 0:00:00]} (44. d6 $1 $18 {[%cal Rd6d7]} Rd1 45. Ke4) 44... Kf8 $1 $14 {[%emt 0:00:00]} 45. d6 {[%emt 0:00:00]} Ke8 {[%emt 0:00:00]} 46. Ra2 {[%emt 0:00:00]} Rh4 $1 {[%emt 0:00:00]} 47. Ra8+ {[%emt 0:00:00]} Kd7 {[%emt 0:00:00]} 48. Ra7+ {[%emt 0:00:00]} Ke8 $1 {[%emt 0:00:00]} 49. Re7+ {[%emt 0:00:00]} Kf8 {[%emt 0:00:00]} 50. e6 {[%emt 0:00:00]} (50. Rc7 $5 Ke8 $8 51. Rc8+ Kd7 52. Rh8 $11) 50... fxe6 {[%emt 0:00:00]} 51. Rxe6 {[%emt 0:00:00]} Ra4 {[%emt 0:00:00]} 52. d7 {[%emt 0:02:53]} Ra8 {[%emt 0:00:00]} 53. Rxh6 {[%emt 0:00:01]} (53. Ke4 $5 Rd8 $8 54. Rd6 $11 (54. Rxh6 Rxd7 55. Rg6 Rf7 $11)) 53... Ra3+ {[%emt 0:00:00]} 54. Ke4 {[%emt 0:01:26]} Ke7 {[%emt 0:00:00]} 55. Rh7+ {[%emt 0:02:19]} (55. Rd6 $5 Kd8 56. Rd2 $11) 55... Kd8 {[%emt 0:00:00]} 56. Kf5 {[%emt 0:00:19]} Ra2 {[%emt 0:00:00]} 57. f3 {[%emt 0:00:43]} (57. Rh2 {vereinfacht} Kxd7 58. Kxg5 Ra5+ 59. Kf6) 57... Rf2 {[%emt 0:00:00]} 58. Kg4 {[%emt 0:00:52]} Rg2+ {[%emt 0:00:00]} 59. Kh3 {[%emt 0:00:18]} Rg1 {[%emt 0:00:00]} 60. Rg7 {[%emt 0:00:22]} Rh1+ {[%emt 0:00:00]} (60... Re1 {vereinfacht} 61. Rxg5 Kxd7 62. Ra5 Ke6) 61. Kg4 {[%emt 0:01:16]} (61. Kg2 {vereinfacht} Ra1 62. Rg8+ Kxd7 63. Rxg5 Ke7 64. Rb5) 61... Rg1+ {[%emt 0:00:00]} 62. Kh5 {[%emt 0:00:19]} (62. Kf5 $5 Rf1 $8 63. Kg4 $11 (63. Kxg5 Rxf3 64. Kg6 Rf1 $11) (63. Rxg5 Kxd7 64. Ke4 Ke7 $11) (63. Ke6 Re1+ 64. Kf5 Rf1 $11)) 62... Rf1 {[%emt 0:00:00]} 63. Kg4 {[%emt 0:01:12]} (63. Rf7 $5 Rg1 $8 64. Kg6 $11) 63... Rg1+ {[%emt 0:00:00]} 64. Kh3 {[%emt 0:00:03]} (64. Kf5 $5 Rf1 $8 65. Kg4 $16 (65. Kxg5 Rxf3 66. Kg6 Rd3 $11) (65. Ke6 Re1+ 66. Kf5 Rf1 $11)) 64... Rh1+ {[%emt 0:00:00]} 65. Kg2 {[%emt 0:00:30]} Ra1 {[%emt 0:00:00]} 66. Rf7 {[%emt 0:00:30]} (66. Rxg5 {vereinfacht} Kxd7 67. Re5 Ra8 68. Re4) 66... Rd1 {[%emt 0:00:00]} 67. Kg3 {[%emt 0:00:30]} (67. Rf5 {vereinfacht} Kxd7 68. Rxg5 Ke7 69. Re5+) 67... Rg1+ {[%emt 0:00:00]} 68. Kh3 {[%emt 0:00:30]} Kc7 {[%emt 0:00:00]} 69. Rg7 {[%emt 0:00:30]} Rh1+ {[%emt 0:00:00]} 70. Kg2 {[%emt 0:00:30]} Rd1 {[%emt 0:00:18]} 71. Rxg5 {[%emt 0:00:30]} Rxd7 {[%emt 0:00:30]} 72. Re5 {[%emt 0:00:30]} Kd6 {[%emt 0:00:30]} 73. Re4 {[%emt 0:00:30]} Re7 {[%emt 0:00:30]} 74. Rf4 {[%emt 0:00:30]} Ke6 {[%emt 0:00:30]} 75. Kg3 {[%emt 0:00:30]} Ra7 {[%emt 0:00:30]} 76. Rf8 {[%emt 0:00:30]} Ra4 {[%emt 0:00:30]} 77. f4 {[%emt 0:01:16]} Ke7 {[%emt 0:06:09]} 78. Rf5 {[%emt 0:00:05]} Ke6 {[%emt 0:01:34]} 79. Kg4 {[%emt 0:00:01]} Ra1 {[%emt 0:00:13]} 80. Rb5 {[%emt 0:01:11]} Rg1+ {[%emt 0:00:19]} 81. Kh5 {[%emt 0:00:04]} Kf6 {[%emt 0:00:08]} 82. Rg5 {[%emt 0:00:03]} Rh1+ {[%emt 0:00:27]} 83. Kg4 {[%emt 0:00:05]} Rg1+ {[%emt 0:00:03]} 84. Kf3 {[%emt 0:00:02]} Rxg5 {[%emt 0:00:08]} 85. fxg5+ {[%emt 0:00:02]} Kxg5 {[%emt 0:00:06]} 1/2-1/2

[Event "Fagernes Chess GM-Swiss 2024"]
[Site "Fagernes"]
[Date "2024.03.27"]
[Round "5.9"]
[White "Panda Sambit"]
[Black "Blomqvist, Erik"]
[Result "0-1"]
[ECO "D32"]
[WhiteElo "2377"]
[BlackElo "2511"]
[Annotator "TA"]
[PlyCount "102"]
[EventDate "2024.03.25"]
[EventType "swiss"]
[EventCountry "NOR"]
[SourceTitle "playchess.com"]
[Source "ChessBase"]
[SourceQuality "1"]
[TimeControl "40/6000+30:2400+30"]

{[%evp 18,102,16,20,51,12,78,90,66,70,87,64,66,70,60,78,63,34,40,34,38,37,50,46,44,29,34,35,45,24,29,13,43,23,22,20,12,28,38,37,41,34,50,37,51,47,70,46,49,34,26,19,37,10,25,25,25,25,25,10,11,0,83,83,129,108,130,139,181,164,169,175,187,195,168,-674,-581,-5210,-5202,-12840,-12690,-29964,-29945,-29978,-29979,-29980,-29980]} 1. d4 {[%emt 0:07:15]} Nf6 {[%emt 0:00:14]} 2. c4 {[%emt 0:00:13]} e6 {[%emt 0:00:08]} 3. Nf3 {[%emt 0:00:11]} d5 {[%emt 0:00:39]} 4. Nc3 {[%emt 0:00:04]} Bb4 {[%emt 0:00:08]} 5. cxd5 {[%emt 0:06:10]} exd5 {[%emt 0:00:48]} 6. Bf4 {[%emt 0:00:07]} O-O {[%emt 0:02:02]} 7. e3 {[%emt 0:01:13]} c5 {[%emt 0:00:20]} 8. Bd3 {[%emt 0:00:44]} Nc6 {[%emt 0:03:02]} 9. O-O {[%emt 0:10:56]} cxd4 {[%emt 0:09:58]} 10. Nxd4 {[%emt 0:01:18]} h6 {[%emt 0:06:01]} 11. Rc1 {[%emt 0:10:10]} Bd6 {[%emt 0:18:01]} (11... Nxd4 $11 {hält das Gleichgewicht.} 12. exd4 a6) 12. Bxd6 $16 {[%emt 0:04:10]} Qxd6 {[%emt 0:00:07] Weiß steht besser.} 13. Ncb5 {[%emt 0:00:02]} Qe5 {[%emt 0:15:18]} 14. h3 {[%emt 0:10:27]} Bd7 {[%emt 0:01:53]} 15. Nxc6 {[%emt 0:00:17]} Bxc6 {[%emt 0:03:27]} 16. Nd4 {[%emt 0:00:08]} Bd7 {[%emt 0:00:43]} 17. Qf3 {[%emt 0:13:59]} Rac8 {[%emt 0:03:41]} 18. Qf4 {[%emt 0:13:44]} Qxf4 {[%emt 0:04:20]} 19. exf4 {[%emt 0:00:06]} Rfe8 {[%emt 0:00:15]} 20. g4 {[%emt 0:03:45]} Kf8 {[%emt 0:03:14]} 21. Rxc8 {[%emt 0:08:45]} Rxc8 {[%emt 0:01:29]} 22. Re1 {[%emt 0:00:36]} Ne4 {[%emt 0:11:07]} 23. f5 {[%emt 0:04:57]} Nc5 {[%emt 0:11:44]} 24. Bc2 {[%emt 0:00:19]} a5 {[%emt 0:01:11]} 25. f3 {[%emt 0:05:21]} Na6 {[%emt 0:03:18]} 26. a3 {[%emt 0:06:47]} Rc4 {[%emt 0:06:08]} 27. Rd1 {[%emt 0:00:04]} Ke7 {[%emt 0:02:25]} 28. Kf2 {[%emt 0:00:23]} Kd6 {[%emt 0:00:21]} 29. Bb3 {[%emt 0:00:44]} Rc5 {[%emt 0:00:17]} 30. Rd2 {[%emt 0:00:54]} Nc7 {[%emt 0:01:47]} 31. Ne2 {[%emt 0:00:36]} Ke5 {[%emt 0:01:14]} 32. f4+ {[%emt 0:01:04]} Kf6 $1 {[%emt 0:00:27]} 33. Ng3 {[%emt 0:00:52] [#] Ne4+ wäre nun fies.} Ke7 {[%emt 0:00:29]} 34. Ke3 {[%emt 0:00:37]} Bc6 {[%emt 0:00:41]} 35. Ne2 {[%emt 0:00:28]} Nb5 {[%emt 0:00:21]} 36. a4 {[%emt 0:00:13]} Nd6 {[%emt 0:00:30]} 37. Nc3 {[%emt 0:00:47][%cal Rb3d5]} Nc4+ {[%emt 0:00:37]} 38. Bxc4 {[%emt 0:00:05]} Rxc4 {[%emt 0:00:26]} 39. Nxd5+ $11 {[%emt 0:00:50][%mdl 4096] Endspiel. KRB-KRN} Kf8 {[%emt 0:00:37]} (39... Bxd5 $11 40. Rxd5 Rxa4) 40. b3 $16 {[%emt 0:00:37]} Rc5 {[%emt 0:00:31]} (40... Rc1 $142) 41. Nb6 {[%emt 0:08:14]} Rc1 {[%emt 0:09:43]} 42. Kd4 {[%emt 0:11:26]} Rf1 {[%emt 0:01:33]} 43. Nc4 {[%emt 0:06:23]} Rxf4+ {[%emt 0:00:25]} 44. Kc5 {[%emt 0:01:27]} h5 {[%emt 0:01:56]} 45. Nxa5 {[%emt 0:03:44]} Bh1 {[%emt 0:02:42]} 46. Rd4 $4 {[%emt 0:08:28][%mdl 8192] [#]} ({Viel schwächer wäre} 46. gxh5 $6 Rxf5+ 47. Kb6 Rxh5 $11) (46. Rd7 $18) 46... b6+ $1 $19 {[%emt 0:00:11][%mdl 512]} 47. Kc4 {[%emt 0:00:22]} (47. Kxb6 Rxd4) 47... Rxd4+ {[%emt 0:00:27]} 48. Kxd4 {[%emt 0:00:01]} bxa5 {[%emt 0:00:43]} 49. gxh5 {[%emt 0:00:20]} Ke7 {[%emt 0:00:40] Schwarz setzt Matt.} 50. Kc5 {[%emt 0:04:10]} Kf6 {[%emt 0:00:25]} 51. Kb5 {[%emt 0:00:09]} Bd5 {[%emt 0:00:18] Nie zu früh aufgeben!   Gewichteter Fehlerwert: Weiß=0.49/Schwarz=0.13 (sehr präzise) .  Gewinn verpasst:   	Weiß=1     	---        Fehler:       	---       	Schwarz=3     Ungenau:       	Weiß=4     	Schwarz=2     OK:         	Weiß=15    	Schwarz=11    Bester:       	Weiß=6     	Schwarz=1     Stark:        	---       	Schwarz=1     Brilliant:      	---       	Schwarz=1} 0-1

[Event "Fagernes Chess GM-Swiss 2024"]
[Site "Fagernes"]
[Date "2024.03.27"]
[Round "5.10"]
[White "Yaniv, Yuval"]
[Black "Amar, Elham"]
[Result "0-1"]
[ECO "B13"]
[WhiteElo "2368"]
[BlackElo "2567"]
[Annotator "TA"]
[PlyCount "66"]
[EventDate "2024.03.25"]
[EventType "swiss"]
[EventCountry "NOR"]
[SourceTitle "playchess.com"]
[Source "ChessBase"]
[SourceQuality "1"]
[TimeControl "40/6000+30:2400+30"]

{[%evp 9,66,29,33,37,35,37,30,31,23,8,36,31,31,25,47,25,58,54,106,91,97,96,132,110,122,112,127,9,14,-16,-29,0,0,0,0,0,52,67,60,-28,0,-82,-89,-57,-62,-174,-155,-187,-189,-465,-433,-433,-225,-380,-244,-29987,-29988,-29998,-29999]} 1. e4 {[%emt 0:01:26]} c6 {[%emt 0:00:06]} 2. d4 {[%emt 0:00:21]} d5 {[%emt 0:00:05]} 3. exd5 {[%emt 0:00:14]} cxd5 {[%emt 0:00:11]} 4. Bd3 {[%emt 0:00:08]} Nc6 {[%emt 0:00:07]} 5. c3 {[%emt 0:00:07]} e6 {[%emt 0:00:04]} 6. Nf3 {[%emt 0:13:53]} Bd6 {[%emt 0:00:10]} 7. O-O {[%emt 0:00:10]} Nge7 {[%emt 0:00:04]} 8. Re1 {[%emt 0:00:43] Weiß hat minimalen Vorteil.} O-O {[%emt 0:00:05]} 9. a4 {[%emt 0:07:20]} Bd7 {[%emt 0:08:10]} 10. b4 {[%emt 0:04:28]} f6 {[%emt 0:02:04]} 11. Ba3 {[%emt 0:08:45]} Qc7 {[%emt 0:06:47]} 12. Nbd2 {[%emt 0:00:00]} Rac8 {[%emt 0:14:43]} 13. Qb1 {[%emt 0:12:34][%cal Oc3c4]} g5 {[%emt 0:21:52]} ({Vorzuziehen ist} 13... Nf5 $14) 14. Bxh7+ $16 {[%emt 0:15:29]} Kg7 {[%emt 0:00:10] ...g4 wäre nun fies.} 15. h3 {[%emt 0:00:07]} f5 {[%emt 0:12:58]} 16. Nxg5 {[%emt 0:02:36][%cal Ob4b5]} Nd8 {[%emt 0:00:03][%csl LRa4,LRc3][%cal Of8h8,Bc6d8,Bd8f7,Bf7g5][%mdl 32]} 17. b5 {[%emt 0:07:20] Zielt auf Bxd6 ab.} Rh8 {[%emt 0:09:19]} 18. Re3 {[%emt 0:09:31]} (18. Qa2 $16) 18... Nf7 $1 $11 {[%emt 0:08:49]} 19. Rxe6 {[%emt 0:07:53]} (19. Nxe6+ Bxe6 20. Rxe6 Rxh7 21. Bxd6 Nxd6 $15) (19. Nxf7 {wäre vielleicht verwirrender.} Kxf7 20. Bxd6 Qxd6 21. Nf3) 19... Bxa3 {[%emt 0:00:37]} 20. Rxa3 {[%emt 0:00:07]} Nxg5 {[%emt 0:00:18]} 21. Rxe7+ {[%emt 0:00:50]} Kf6 {[%emt 0:00:01] Manche mögen's heiß} 22. Qb4 {[%emt 0:06:34][%cal Oh7f5] Droht stark Bxf5!} (22. b6 axb6 (22... Qd6 23. Rxd7 Qxd7 24. bxa7 $15) 23. Qb4 (23. Rxd7 $2 Qxd7 24. Qxb6+ Rc6 $19) 23... Rxh7 (23... Nxh7 24. c4 $16) 24. Rxh7 Nxh7 $17) 22... Rce8 {[%emt 0:04:59]} (22... Rxh7 $11 23. Rxh7 Nxh7) 23. Rxe8 $14 {[%emt 0:00:35]} Rxe8 {[%emt 0:00:32] [#]} 24. Ra1 {[%emt 0:01:34]} Nxh7 {[%emt 0:00:18] Aktives Gegenspiel!} (24... Kg7 $5) 25. Nf3 {[%emt 0:01:51] [#]} (25. c4 $11 {bleibt in der Remisbreite.}) 25... Ng5 $1 $36 {[%emt 0:02:22][%mdl 2048] Und ...Nxf3+ würde nun gewinnen. Schwarz hat starke Initiative.} 26. Ne5 {[%emt 0:00:17][%cal Ob5b6] b6! ist eine echte Drohung.} Be6 {[%emt 0:00:39]} 27. Re1 {[%emt 0:06:00] [#]} (27. f3 $15) 27... Rg8 $1 $19 {[%emt 0:03:00][%cal Oc7g7]} 28. Kf1 {[%emt 0:02:43]} Ne4 {[%emt 0:00:33][%cal Oc7g7] Droht ...Qg7! und aus.} 29. g4 $2 {[%emt 0:00:51]} (29. f3 Qxc3 (29... Nxc3 30. Rc1 $14) 30. Qxc3 Nxc3 31. Kf2) 29... fxg4 {[%emt 0:02:04]} 30. hxg4 {[%emt 0:00:06]} Qxc3 {[%emt 0:01:59]} (30... Bxg4 31. Nxg4+ Rxg4 32. Qf8+ Qf7 33. Qxf7+ Kxf7 34. f3 $19) (30... Qh7 $142 {( -> ...Qh3+)} 31. Re3 Bxg4 32. Nxg4+ Rxg4 33. Qf8+ Kg5) 31. g5+ $2 {[%emt 0:00:44]} (31. Qxc3 {einziger Zug.} Nxc3 32. Re3 Nxa4 33. Rf3+ Kg5 34. Ra3) 31... Kf5 {[%emt 0:00:00]} 32. Qe7 {[%emt 0:00:41]} (32. Qxc3 $19 Nxc3 33. Nd3) 32... Rh8 {[%emt 0:03:57]} ({Lieber nicht} 32... Rxg5 33. Rxe4 Qa1+ (33... Qh3+ 34. Ke2 $11) 34. Re1 $11) 33. Kg1 {[%emt 0:00:30]} Qxe1+ {[%emt 0:00:15] Gewichteter Fehlerwert: Weiß=0.68/Schwarz=0.30.  Fehler:       	Weiß=7     	Schwarz=3     Ungenau:       	Weiß=1     	Schwarz=5     OK:         	Weiß=8     	Schwarz=9     Bester:       	Weiß=2     	Schwarz=3     Stark:        	---       	Schwarz=2} 0-1

[Event "Fagernes Chess GM-Swiss 2024"]
[Site "Fagernes"]
[Date "2024.03.27"]
[Round "5.11"]
[White "Nielsen, Viktor Haarmark"]
[Black "Mitusov, Semen"]
[Result "1/2-1/2"]
[ECO "E04"]
[WhiteElo "2351"]
[BlackElo "2487"]
[Annotator "TA"]
[PlyCount "89"]
[EventDate "2024.03.25"]
[EventType "swiss"]
[EventCountry "NOR"]
[SourceTitle "playchess.com"]
[Source "ChessBase"]
[SourceQuality "1"]
[TimeControl "40/6000+30:2400+30"]

{[%evp 11,89,23,18,-21,18,29,33,29,9,16,12,9,27,16,25,6,4,19,14,14,19,14,30,20,15,21,18,24,14,13,17,20,21,18,20,0,0,0,0,0,0,0,0,0,0,0,0,0,0,0,0,0,0,0,0,0,0,0,0,0,0,0,0,0,0,0,0,0,0,0,0,0,0,0,0,0,0,0,0,0]} 1. d4 {[%emt 0:00:03]} d5 {[%emt 0:01:29]} 2. c4 {[%emt 0:00:04]} e6 {[%emt 0:00:46]} 3. Nf3 {[%emt 0:00:06]} Nf6 {[%emt 0:00:07]} 4. g3 {[%emt 0:00:04]} dxc4 {[%emt 0:00:06]} 5. Bg2 {[%emt 0:00:06]} a6 {[%emt 0:00:10]} 6. O-O {[%emt 0:00:07]} Nc6 {[%emt 0:00:02]} 7. Qd2 {[%emt 0:00:10]} Bb4 {[%emt 0:01:46] Wards off Qc3} 8. Qc2 {[%emt 0:01:15]} b5 {[%emt 0:00:06][%cal Oc8b7]} 9. Ne5 {[%emt 0:00:13] White is slightly better.} Nxe5 {[%emt 0:00:13]} (9... Nxd4 $2 {loses.} 10. Qd1 $18) 10. dxe5 {[%emt 0:00:07]} Nd5 {[%emt 0:00:07]} 11. Rd1 {[%emt 0:00:04] next e4 is good for White.} Bd7 {[%emt 0:04:42]} 12. Nc3 {[%emt 0:01:00]} Bxc3 {[%emt 0:04:04]} 13. bxc3 {[%emt 0:00:20]} Qe7 {[%emt 0:00:06] Against Ba3} 14. a4 {[%emt 0:00:24]} O-O {[%emt 0:01:28]} 15. a5 {[%emt 0:00:13][%cal Oe2e4] Threatens to win with e4!} b4 {[%emt 0:01:53]} 16. cxb4 {[%emt 0:00:07]} Rad8 $1 {[%emt 0:03:11]} 17. Qxc4 {[%emt 0:00:43]} Bb5 {[%emt 0:04:32]} 18. Qc2 {[%emt 0:00:10]} Nxb4 {[%emt 0:07:46]} 19. Ba3 {[%emt 0:01:48]} c5 {[%emt 0:01:36]} 20. Qb2 {[%emt 0:00:06] The position is equal.} h6 {[%emt 0:07:23]} 21. h4 {[%emt 0:01:40]} Rxd1+ {[%emt 0:09:56]} 22. Rxd1 {[%emt 0:00:09]} Rd8 {[%emt 0:00:05]} 23. Rxd8+ {[%emt 0:00:59]} Qxd8 {[%emt 0:00:01]} 24. Bxb4 {[%emt 0:00:18]} cxb4 {[%emt 0:04:08]} 25. Qxb4 {[%emt 0:00:18]} Bxe2 $11 {[%emt 0:00:48][%mdl 4096] Endgame. KQB-KQB} 26. Qe4 {[%emt 0:03:01]} Qd1+ {[%emt 0:10:11]} 27. Kh2 {[%emt 0:00:14][%cal Oh4h5]} g6 {[%emt 0:00:02]} 28. Qf4 {[%emt 0:08:19]} h5 {[%emt 0:00:54]} 29. Bc6 {[%emt 0:01:11]} Qd8 {[%emt 0:03:42] Inhibits Be8.} 30. Qe3 {[%emt 0:01:38]} Qc7 {[%emt 0:04:28]} 31. Qxe2 {[%emt 0:04:23]} Qxc6 {[%emt 0:00:05] KQ-KQ} 32. Qd3 {[%emt 0:02:07]} Kg7 {[%emt 0:01:37]} 33. Kg1 {[%emt 0:00:34]} Qb7 {[%emt 0:01:20]} 34. Kh2 {[%emt 0:02:10]} Qb2 {[%emt 0:01:14]} 35. Kg2 {[%emt 0:00:33]} Qb7+ {[%emt 0:00:49]} 36. Kh2 {[%emt 0:00:06]} Qc8 {[%emt 0:01:23]} 37. Kg2 {[%emt 0:02:53]} Qc6+ {[%emt 0:01:23]} 38. Kg1 {[%emt 0:00:21]} Qc8 {[%emt 0:00:19]} 39. Kg2 {[%emt 0:00:09]} Kf8 {[%emt 0:00:07]} 40. Kg1 {[%emt 0:00:35]} Ke7 {[%emt 0:01:03]} 41. Qd6+ {[%emt 0:41:00]} Ke8 {[%emt 0:40:00]} 42. Qd3 {[%emt 0:00:07]} Qc6 {[%emt 0:00:21]} 43. Kf1 {[%emt 0:01:09]} Qh1+ {[%emt 0:05:28]} 44. Ke2 {[%emt 0:01:32]} Qc6 {[%emt 0:00:17]} 45. Kf1 {[%emt 0:00:08] An interesting draw.   Weighted Error Value: White=0.02 (flawless) /Black=0.01 (flawless) .  Inaccurate:     	---       	Black=1      OK:         	White=15    	Black=16     Best:        	White=3     	---        Strong:       	---       	Black=1} 1/2-1/2